fUSD/lending_fUSD_20250530
["ID","MTS","AMOUNT","RATE_DAILY","PERIOD"]
[363075553,1748568155754,-157.83033948,0.0002028,2]
[363075554,1748568190880,9467.40342722,0.00019,2]
[363075555,1748568190989,4000.0,0.00019,2]
[363075556,1748568191011,4000.0,0.00019,2]
[363075557,1748568191032,4000.0,0.00019,2]
[363075558,1748568191052,4000.0,0.00019,2]
[363075559,1748568191074,4000.0,0.00019,2]
[363075560,1748568191096,4000.0,0.00019,2]
[363075561,1748568191116,4000.0,0.00019,2]
[363075562,1748568191138,4000.0,0.00019,2]
[363075563,1748568191160,4000.0,0.00019,2]
[363075564,1748568191181,4000.0,0.00019,2]
[363075565,1748568191202,4000.0,0.00019,2]
[363075566,1748568191224,4000.0,0.00019,2]
[363075567,1748568191246,4000.0,0.00019,2]
[363075568,1748568191268,4000.0,0.00019,2]
[363075569,1748568191291,4000.0,0.00019,2]
[363075570,1748568191316,4000.0,0.00019,2]
[363075571,1748568191342,1700.0,0.00019,2]
[363075572,1748568191368,210871.24657278,0.00019,2]
[363075574,1748568362900,460.70827484,8e-05,2]
[363075595,1748568475065,1501.14229203,0.00015,2]
[363075596,1748568491287,5442.36943313,0.0001439,2]
[363075598,1748568511839,1190.43310726,0.000149,2]
[363075600,1748568520556,3910.3400944,0.00013368,2]
[363075611,1748568632303,-251.05973198,0.00019178,2]
[363075612,1748568632315,-23.53026802,0.00019178,2]
[363075613,1748568632325,-200.0,0.0001953,2]
[363075614,1748568632334,-251.84799459,0.00019647,2]
[363075615,1748568632343,-200.0,0.00019792,2]
[363075616,1748568632353,-209.0,0.00019881,2]
[363075617,1748568632363,-174.91342898,0.000199,2]
[363075618,1748568632373,-300.0,0.00019998,2]
[363075619,1748568632383,-1200.0,0.00019998,2]
[363075620,1748568632392,-750.0,0.00019999,2]
[363075621,1748568632402,-642.66074364,0.00019999,2]
[363075622,1748568632412,-500.0,0.00019999,2]
[363075623,1748568632422,-500.0,0.00019999,2]
[363075624,1748568632432,-500.0,0.00019999,2]
[363075625,1748568632446,-500.0,0.00019999,2]
[363075626,1748568632456,-500.0,0.00019999,2]
[363075627,1748568632466,-500.0,0.00019999,2]
[363075628,1748568632475,-421.12026444,0.00019999,2]
[363075629,1748568632486,-508.3847218,0.0002,4]
[363075630,1748568632495,-78916.01615145,0.0002,2]
[363075643,1748568638388,-4361.95123504,0.0002,2]
[363075644,1748568638401,-372361.2302212,0.0002,2]
[363075645,1748568638411,-500.0,0.0002,2]
[363075646,1748568638420,-630.676485,0.0002,2]
[363075647,1748568638430,-152.86932215,0.0002,2]
[363075648,1748568638440,-500.0,0.0002,2]
[363075649,1748568638455,-500.0,0.0002,2]
[363075650,1748568638465,-505.59067442,0.0002,2]
[363075651,1748568638475,-652.83,0.00020119,2]
[363075652,1748568638484,-151.0,0.00020246,2]
[363075653,1748568638495,-9.28966052,0.0002028,2]
[363075654,1748568638504,-200.0,0.00020282,2]
[363075655,1748568638513,-23712.49238885,0.0002029,2]
[363075657,1748568638525,-615.80830332,0.00020296,2]
[363075659,1748568638535,-1400.26,0.00020329,2]
[363075661,1748568638544,-502.93448441,0.00020548,2]
[363075663,1748568638554,-1000.0,0.00020548,2]
[363075665,1748568638563,-1000.0,0.00020548,2]
[363075667,1748568638573,-150.0,0.00020607,7]
[363075669,1748568638582,-174.91342895,0.00020612,2]
[363075670,1748568638591,-11440.64144712,0.00020643,2]
[363075672,1748568638601,-365.108113,0.000207,2]
[363075675,1748568638611,-167.06,0.00020768,2]
[363075677,1748568638620,-2166.57,0.00020854,2]
[363075679,1748568638630,-2166.57,0.00020859,2]
[363075681,1748568638639,-2166.57,0.00020864,2]
[363075683,1748568638649,-2166.57,0.0002087,2]
[363075685,1748568638658,-2166.57,0.00020875,2]
[363075688,1748568638667,-2166.57,0.00020881,2]
[363075691,1748568638676,-2166.57,0.00020886,2]
[363075693,1748568638686,-2166.57,0.00020892,2]
[363075695,1748568638695,-2166.57,0.00020897,2]
[363075697,1748568638707,-2166.57,0.00020903,2]
[363075699,1748568638717,-2166.57,0.00020908,2]
[363075701,1748568638726,-2166.57,0.00020914,2]
[363075703,1748568638736,-457.95,0.00020914,2]
[363075705,1748568638745,-2166.57,0.00020919,2]
[363075707,1748568638755,-2166.57,0.00020925,2]
[363075709,1748568638764,-2166.57,0.0002093,2]
[363075710,1748568638773,-2166.57,0.00020936,2]
[363075712,1748568638783,-2166.57,0.00020941,2]
[363075714,1748568638792,-2166.57,0.00020947,2]
[363075716,1748568638801,-2166.57,0.00020952,2]
[363075718,1748568638810,-2166.57,0.00020958,2]
[363075720,1748568638819,-240.26,0.00020986,2]
[363075722,1748568638828,-235.83,0.00020989,2]
[363075724,1748568638837,-1379.49,0.00021022,2]
[363075726,1748568638847,-250.0,0.00021036,2]
[363075728,1748568638856,-297.45483371,0.00021075,2]
[363075730,1748568638866,-200.0,0.00021096,2]
[363075732,1748568638875,-250.0,0.00021096,2]
[363075734,1748568638885,-1500.0,0.00021096,2]
[363075736,1748568638894,-507.08647826,0.00021096,2]
[363075738,1748568638903,-241.8,0.00021109,2]
[363075740,1748568638912,-151.0,0.00021165,2]
[363075742,1748568638922,-2915.3819027,0.00021165,2]
[363075744,1748568638931,-1115.157653,0.00021165,2]
[363075746,1748568638940,-210.22428851,0.00021165,2]
[363075748,1748568638951,-207.4,0.00021165,2]
[363075750,1748568638961,-174.91342895,0.00021324,2]
[363075752,1748568638970,-4530.26,0.00021327,2]
[363075754,1748568638979,-906.06978237,0.00021344,2]
[363075756,1748568638989,-993.57,0.00021352,2]
[363075758,1748568638998,-176.26,0.0002136,2]
[363075760,1748568639008,-167.06,0.00021624,2]
[363075762,1748568639017,-1780.60145848,0.00021644,2]
[363075764,1748568639026,-240.26,0.00021773,2]
[363075766,1748568639035,-420.0,0.00021776,2]
[363075768,1748568639044,-1406.0348,0.00021817,2]
[363075770,1748568639054,-2500.0,0.00021817,2]
[363075772,1748568639064,-426.51533269,0.00021817,5]
[363075774,1748568639073,-168.75119117,0.00021817,2]
[363075776,1748568639082,-159.65305809,0.00021817,2]
[363075778,1748568639091,-1680.0,0.0002188,2]
[363075780,1748568639101,-214.26134741,0.000219,2]
[363075782,1748568639110,-150.0,0.00021911,3]
[363075784,1748568639119,-150.0,0.00021912,3]
[363075786,1748568639129,-150.0,0.00021913,3]
[363075788,1748568639138,-150.0,0.00021914,3]
[363075790,1748568639148,-15900.53722207,0.00021915,2]
[363075792,1748568639157,-150.0,0.00021915,3]
[363075793,1748568639166,-150.0,0.00021916,3]
[363075795,1748568639176,-420.0,0.00021917,2]
[363075797,1748568639186,-420.0,0.00021917,2]
[363075799,1748568639195,-420.0,0.00021917,2]
[363075802,1748568639205,-156.963552,0.00021917,2]
[363075803,1748568639215,-420.0,0.00021917,2]
[363075806,1748568639226,-420.0,0.00021917,2]
[363075807,1748568639235,-420.0,0.00021917,2]
[363075809,1748568639245,-1734.170887,0.00021917,2]
[363075812,1748568639255,-1629.865428,0.00021917,2]
[363075814,1748568639265,-420.0,0.00021917,2]
[363075816,1748568639275,-516.62,0.00021917,2]
[363075818,1748568639284,-420.0,0.00021917,2]
[363075819,1748568639294,-420.0,0.00021917,2]
[363075821,1748568639304,-420.0,0.00021917,2]
[363075824,1748568639314,-452.93,0.00021917,2]
[363075826,1748568639324,-420.0,0.00021917,2]
[363075828,1748568639334,-420.0,0.00021917,2]
[363075830,1748568639346,-420.0,0.00021917,2]
[363075832,1748568639356,-420.0,0.00021917,2]
[363075834,1748568639365,-420.0,0.00021917,2]
[363075835,1748568639374,-422.61145374,0.00021917,2]
[363075837,1748568639384,-420.0,0.00021917,2]
[363075839,1748568639393,-420.0,0.00021917,2]
[363075841,1748568639403,-420.0,0.00021917,2]
[363075843,1748568639413,-473.46,0.00021917,2]
[363075844,1748568639422,-420.0,0.00021917,2]
[363075845,1748568639431,-420.0,0.00021917,2]
[363075846,1748568639441,-420.0,0.00021917,2]
[363075847,1748568639455,-420.0,0.00021917,2]
[363075848,1748568639465,-420.0,0.00021917,2]
[363075849,1748568639474,-420.0,0.00021917,2]
[363075850,1748568639483,-420.0,0.00021917,2]
[363075851,1748568639493,-446.56,0.00021917,2]
[363075852,1748568639503,-420.0,0.00021917,2]
[363075853,1748568639512,-521.32,0.00021917,2]
[363075854,1748568639523,-420.0,0.00021917,2]
[363075855,1748568639532,-428.36,0.00021917,2]
[363075856,1748568639542,-524.53,0.00021917,2]
[363075857,1748568639551,-420.0,0.00021917,2]
[363075858,1748568639561,-528.71,0.00021917,2]
[363075859,1748568639570,-420.0,0.00021917,2]
[363075860,1748568639579,-420.0,0.00021917,2]
[363075861,1748568639588,-420.0,0.00021917,2]
[363075863,1748568639598,-420.0,0.00021917,2]
[363075865,1748568639606,-843.07,0.00021917,2]
[363075867,1748568639616,-420.0,0.00021917,2]
[363075869,1748568639625,-420.0,0.00021917,2]
[363075871,1748568639634,-487.7,0.00021917,2]
[363075873,1748568639644,-420.0,0.00021917,2]
[363075875,1748568639653,-403.38066722,0.00021917,2]
[363075877,1748568639663,-420.0,0.00021917,2]
[363075879,1748568639673,-420.0,0.00021917,2]
[363075881,1748568639682,-420.0,0.00021917,2]
[363075883,1748568639692,-420.0,0.00021917,2]
[363075886,1748568639703,-420.0,0.00021917,2]
[363075888,1748568639714,-420.0,0.00021917,2]
[363075889,1748568639723,-533.14,0.00021917,2]
[363075892,1748568639733,-420.0,0.00021917,2]
[363075894,1748568639742,-420.0,0.00021917,2]
[363075895,1748568639751,-420.0,0.00021917,2]
[363075897,1748568639761,-420.0,0.00021917,2]
[363075900,1748568639771,-420.0,0.00021917,2]
[363075901,1748568639779,-420.0,0.00021917,2]
[363075903,1748568639796,-420.0,0.00021917,2]
[363075905,1748568639806,-420.0,0.00021917,2]
[363075907,1748568639815,-525.75,0.00021917,2]
[363075909,1748568639825,-1047.57,0.00021917,2]
[363075911,1748568639834,-555.3123807,0.00021917,2]
[363075913,1748568639844,-420.0,0.00021917,2]
[363075916,1748568639854,-420.0,0.00021917,2]
[363075918,1748568639864,-420.0,0.00021917,2]
[363075920,1748568639874,-420.0,0.00021917,2]
[363075922,1748568639884,-420.0,0.00021917,2]
[363075924,1748568639893,-420.0,0.00021917,2]
[363075926,1748568639903,-294.69,0.00021917,2]
[363075928,1748568639913,-420.0,0.00021917,2]
[363075930,1748568639922,-420.0,0.00021917,2]
[363075932,1748568639932,-420.0,0.00021917,2]
[363075934,1748568639952,-580.07,0.00021917,2]
[363075936,1748568639963,-420.0,0.00021917,2]
[363075938,1748568639973,-420.0,0.00021917,2]
[363075940,1748568639982,-420.0,0.00021917,2]
[363075942,1748568639991,-500.0,0.00021917,2]
[363075944,1748568640001,-420.0,0.00021917,2]
[363075946,1748568640010,-420.0,0.00021917,2]
[363075948,1748568640019,-599.36,0.00021917,2]
[363075950,1748568640028,-420.0,0.00021917,2]
[363075952,1748568640037,-420.0,0.00021917,2]
[363075954,1748568640046,-420.0,0.00021917,2]
[363075955,1748568640055,-424.66,0.00021917,2]
[363075957,1748568640064,-420.0,0.00021917,2]
[363075960,1748568640073,-420.0,0.00021917,2]
[363075962,1748568640083,-420.0,0.00021917,2]
[363075963,1748568640092,-773.82,0.00021917,2]
[363075965,1748568640102,-664.25,0.00021917,2]
[363075967,1748568640111,-420.0,0.00021917,2]
[363075969,1748568640120,-420.0,0.00021917,2]
[363075971,1748568640129,-420.0,0.00021917,2]
[363075973,1748568640138,-420.0,0.00021917,2]
[363075975,1748568640147,-420.0,0.00021917,2]
[363075977,1748568640157,-420.0,0.00021917,2]
[363075979,1748568640166,-420.0,0.00021917,2]
[363075981,1748568640175,-420.0,0.00021917,2]
[363075983,1748568640184,-420.0,0.00021917,2]
[363075985,1748568640195,-448.82,0.00021917,2]
[363075988,1748568640206,-420.0,0.00021917,2]
[363075990,1748568640215,-420.0,0.00021917,2]
[363075991,1748568640225,-420.0,0.00021917,2]
[363075993,1748568640235,-420.0,0.00021917,2]
[363075995,1748568640244,-420.0,0.00021917,2]
[363075997,1748568640254,-420.0,0.00021917,2]
[363075998,1748568640262,-420.0,0.00021917,2]
[363076000,1748568640272,-420.0,0.00021917,2]
[363076002,1748568640282,-503.28,0.00021917,2]
[363076004,1748568640291,-420.0,0.00021917,2]
[363076006,1748568640300,-420.0,0.00021917,2]
[363076008,1748568640310,-420.0,0.00021917,2]
[363076010,1748568640319,-419.11531115,0.00021917,2]
[363076012,1748568640328,-420.0,0.00021917,2]
[363076014,1748568640338,-420.0,0.00021917,2]
[363076016,1748568640347,-420.0,0.00021917,2]
[363076018,1748568640356,-420.0,0.00021917,2]
[363076020,1748568640365,-420.0,0.00021917,2]
[363076022,1748568640375,-420.0,0.00021917,2]
[363076024,1748568640386,-420.0,0.00021917,2]
[363076026,1748568640395,-420.0,0.00021917,2]
[363076028,1748568640405,-420.0,0.00021917,2]
[363076030,1748568640415,-420.0,0.00021917,2]
[363076032,1748568640424,-420.0,0.00021917,2]
[363076034,1748568640433,-786.36,0.00021917,2]
[363076035,1748568640442,-420.0,0.00021917,2]
[363076037,1748568640456,-420.0,0.00021917,2]
[363076039,1748568640465,-420.0,0.00021917,2]
[363076041,1748568640475,-420.0,0.00021917,2]
[363076043,1748568640485,-420.0,0.00021917,2]
[363076045,1748568640494,-420.0,0.00021917,2]
[363076047,1748568640503,-420.0,0.00021917,2]
[363076049,1748568640512,-420.0,0.00021917,2]
[363076051,1748568640524,-420.0,0.00021917,2]
[363076053,1748568640533,-437.5,0.00021917,2]
[363076055,1748568640543,-420.0,0.00021917,2]
[363076057,1748568640553,-420.0,0.00021917,2]
[363076059,1748568640562,-420.0,0.00021917,2]
[363076061,1748568640571,-420.0,0.00021917,2]
[363076063,1748568640581,-420.0,0.00021917,2]
[363076065,1748568640590,-506.89,0.00021917,2]
[363076067,1748568640599,-420.0,0.00021917,2]
[363076069,1748568640608,-420.0,0.00021917,2]
[363076070,1748568640618,-581.27,0.00021917,2]
[363076072,1748568640627,-171.86408573,0.00021917,2]
[363076075,1748568640637,-420.0,0.00021917,2]
[363076076,1748568640646,-420.0,0.00021917,2]
[363076079,1748568640656,-420.0,0.00021917,2]
[363076080,1748568640665,-420.0,0.00021917,2]
[363076082,1748568640675,-624.18,0.00021917,2]
[363076085,1748568640684,-420.0,0.00021917,2]
[363076086,1748568640694,-428.14315489,0.00021917,2]
[363076088,1748568640705,-420.0,0.00021917,2]
[363076091,1748568640714,-420.0,0.00021917,2]
[363076093,1748568640724,-276.3946539,0.00021917,2]
[363076094,1748568640733,-420.0,0.00021917,2]
[363076096,1748568640742,-420.0,0.00021917,2]
[363076098,1748568640751,-420.0,0.00021917,2]
[363076100,1748568640761,-420.0,0.00021917,2]
[363076102,1748568640770,-653.26,0.00021917,2]
[363076104,1748568640780,-420.0,0.00021917,2]
[363076106,1748568640790,-420.0,0.00021917,2]
[363076108,1748568640799,-420.0,0.00021917,2]
[363076110,1748568640810,-420.0,0.00021917,2]
[363076112,1748568640819,-553.08052169,0.00021917,2]
[363076115,1748568640829,-427.15,0.00021917,2]
[363076117,1748568640839,-420.0,0.00021917,2]
[363076118,1748568640848,-420.0,0.00021917,2]
[363076120,1748568640858,-420.0,0.00021917,2]
[363076122,1748568640867,-420.0,0.00021917,2]
[363076150,1748568641130,-420.0,0.00021917,2]
[363076152,1748568641140,-420.0,0.00021917,2]
[363076154,1748568641149,-420.0,0.00021917,2]
[363076156,1748568641158,-420.0,0.00021917,2]
[363076158,1748568641167,-470.76,0.00021917,2]
[363076160,1748568641177,-420.0,0.00021917,2]
[363076162,1748568641186,-420.0,0.00021917,2]
[363076164,1748568641196,-420.0,0.00021917,2]
[363076166,1748568641206,-755.17,0.00021917,2]
[363076168,1748568641216,-420.0,0.00021917,2]
[363076170,1748568641225,-791.58,0.00021917,2]
[363076172,1748568641235,-300.0,0.00021917,2]
[363076174,1748568641244,-420.0,0.00021917,2]
[363076176,1748568641253,-420.0,0.00021917,2]
[363076178,1748568641263,-977.85,0.00021917,2]
[363076180,1748568641272,-420.0,0.00021917,2]
[363076182,1748568641282,-420.0,0.00021917,2]
[363076184,1748568641292,-420.0,0.00021917,2]
[363076186,1748568641301,-420.0,0.00021917,2]
[363076188,1748568641311,-496.37,0.00021917,2]
[363076190,1748568641320,-420.0,0.00021917,2]
[363076192,1748568641329,-420.0,0.00021917,2]
[363076194,1748568641339,-420.0,0.00021917,2]
[363076196,1748568641349,-420.0,0.00021917,2]
[363076198,1748568641359,-420.0,0.00021917,2]
[363076200,1748568641368,-420.0,0.00021917,2]
[363076202,1748568641378,-420.0,0.00021917,2]
[363076204,1748568641387,-420.0,0.00021917,2]
[363076206,1748568641397,-420.0,0.00021917,2]
[363076208,1748568641407,-420.0,0.00021917,2]
[363076210,1748568641416,-1698.27,0.00021917,2]
[363076212,1748568641426,-420.0,0.00021917,2]
[363076214,1748568641435,-420.0,0.00021917,2]
[363076216,1748568641447,-420.0,0.00021917,2]
[363076218,1748568641459,-420.0,0.00021917,2]
[363076220,1748568641469,-420.0,0.00021917,2]
[363076222,1748568641479,-420.0,0.00021917,2]
[363076224,1748568641489,-420.0,0.00021917,2]
[363076225,1748568641498,-420.0,0.00021917,2]
[363076227,1748568641508,-420.0,0.00021917,2]
[363076229,1748568641521,-420.0,0.00021917,2]
[363076232,1748568641531,-420.0,0.00021917,2]
[363076233,1748568641540,-423.82,0.00021917,2]
[363076235,1748568641550,-505.20144136,0.00021917,2]
[363076237,1748568641559,-420.0,0.00021917,2]
[363076239,1748568641568,-420.0,0.00021917,2]
[363076241,1748568641577,-420.0,0.00021917,2]
[363076243,1748568641586,-420.0,0.00021917,2]
[363076245,1748568641595,-420.0,0.00021917,2]
[363076247,1748568641605,-420.0,0.00021917,2]
[363076249,1748568641615,-420.0,0.00021917,2]
[363076251,1748568641624,-420.0,0.00021917,2]
[363076253,1748568641633,-420.0,0.00021917,2]
[363076255,1748568641642,-1593.83,0.00021917,2]
[363076257,1748568641652,-420.0,0.00021917,2]
[363076259,1748568641661,-420.0,0.00021917,2]
[363076261,1748568641670,-500.0,0.00021917,2]
[363076263,1748568641679,-420.0,0.00021917,2]
[363076266,1748568641689,-420.0,0.00021917,2]
[363076267,1748568641700,-420.0,0.00021917,2]
[363076269,1748568641710,-420.0,0.00021917,2]
[363076272,1748568641719,-420.0,0.00021917,2]
[363076273,1748568641728,-420.0,0.00021917,2]
[363076275,1748568641737,-420.0,0.00021917,2]
[363076278,1748568641747,-420.0,0.00021917,2]
[363076279,1748568641756,-420.0,0.00021917,2]
[363076281,1748568641765,-420.0,0.00021917,2]
[363076284,1748568641775,-420.0,0.00021917,2]
[363076286,1748568641785,-1718.33,0.00021917,2]
[363076287,1748568641794,-420.0,0.00021917,2]
[363076289,1748568641803,-420.0,0.00021917,2]
[363076292,1748568641813,-420.0,0.00021917,2]
[363076294,1748568641822,-635.34,0.00021917,2]
[363076296,1748568641831,-420.0,0.00021917,2]
[363076298,1748568641842,-420.0,0.00021917,2]
[363076300,1748568641851,-420.0,0.00021917,2]
[363076302,1748568641861,-420.0,0.00021917,2]
[363076304,1748568641871,-420.0,0.00021917,2]
[363076306,1748568641880,-420.0,0.00021917,2]
[363076308,1748568641889,-500.0,0.00021917,2]
[363076310,1748568641899,-420.0,0.00021917,2]
[363076312,1748568641908,-436.98754532,0.00021917,2]
[363076314,1748568641917,-1284.23,0.00021917,2]
[363076316,1748568641926,-420.0,0.00021917,2]
[363076318,1748568641934,-420.0,0.00021917,2]
[363076320,1748568641944,-420.0,0.00021917,2]
[363076322,1748568641955,-420.0,0.00021917,2]
[363076324,1748568641964,-420.0,0.00021917,2]
[363076326,1748568641973,-1055.58,0.00021917,2]
[363076328,1748568641983,-420.0,0.00021917,2]
[363076330,1748568641992,-420.0,0.00021917,2]
[363076332,1748568642002,-698.63,0.00021917,2]
[363076334,1748568642011,-596.43,0.00021917,2]
[363076336,1748568642020,-682.08,0.00021917,2]
[363076338,1748568642029,-1501.32,0.00021917,2]
[363076339,1748568642038,-420.0,0.00021917,2]
[363076341,1748568642047,-1343.52,0.00021917,2]
[363076343,1748568642056,-420.0,0.00021917,2]
[363076346,1748568642066,-421.95,0.00021917,2]
[363076347,1748568642075,-420.0,0.00021917,2]
[363076349,1748568642085,-420.0,0.00021917,2]
[363076351,1748568642094,-420.0,0.00021917,2]
[363076353,1748568642102,-420.0,0.00021917,2]
[363076354,1748568642111,-550.04,0.00021917,2]
[363076355,1748568642120,-477.61,0.00021917,2]
[363076356,1748568642129,-547.27,0.00021917,2]
[363076357,1748568642138,-504.96,0.00021917,2]
[363076358,1748568642147,-420.0,0.00021917,2]
[363076359,1748568642155,-420.0,0.00021917,2]
[363076360,1748568642165,-420.0,0.00021917,2]
[363076361,1748568642174,-420.0,0.00021917,2]
[363076362,1748568642183,-420.0,0.00021917,2]
[363076363,1748568642192,-420.0,0.00021917,2]
[363076364,1748568642203,-1264.29,0.00021917,2]
[363076365,1748568642212,-506.89,0.00021917,2]
[363076366,1748568642221,-420.0,0.00021917,2]
[363076368,1748568642230,-484.88,0.00021917,2]
[363076370,1748568642240,-876.36,0.00021917,2]
[363076372,1748568642249,-763.82,0.00021917,2]
[363076374,1748568642258,-420.0,0.00021917,2]
[363076376,1748568642267,-711.75,0.00021917,2]
[363076378,1748568642277,-545.35,0.00021917,2]
[363076380,1748568642286,-420.0,0.00021917,2]
[363076382,1748568642295,-420.0,0.00021917,2]
[363076384,1748568642305,-420.0,0.00021917,2]
[363076386,1748568642314,-420.0,0.00021917,2]
[363076388,1748568642324,-1154.75,0.00021917,2]
[363076390,1748568642334,-1483.46,0.00021917,2]
[363076392,1748568642343,-424.25,0.00021917,2]
[363076394,1748568642353,-420.0,0.00021917,2]
[363076396,1748568642363,-420.0,0.00021917,2]
[363076398,1748568642372,-420.0,0.00021917,2]
[363076400,1748568642381,-1000.0,0.00021917,2]
[363076402,1748568642391,-420.0,0.00021917,2]
[363076404,1748568642400,-235.46563747,0.00021917,2]
[363076406,1748568642409,-949.77,0.00021917,2]
[363076408,1748568642421,-420.0,0.00021917,2]
[363076410,1748568642431,-483.19,0.00021917,2]
[363076412,1748568642442,-422.90365431,0.00021917,2]
[363076414,1748568642455,-420.0,0.00021917,2]
[363076416,1748568642464,-2154.21,0.00021917,2]
[363076418,1748568642474,-420.0,0.00021917,2]
[363076420,1748568642485,-450.53705023,0.00021917,2]
[363076422,1748568642494,-420.0,0.00021917,2]
[363076424,1748568642504,-503.42,0.00021917,2]
[363076426,1748568642514,-430.45,0.00021917,2]
[363076428,1748568642525,-420.0,0.00021917,2]
[363076430,1748568642534,-767.97,0.00021917,2]
[363076432,1748568642544,-420.0,0.00021917,2]
[363076434,1748568642553,-420.0,0.00021917,2]
[363076436,1748568642562,-464.45,0.00021917,2]
[363076438,1748568642572,-368.62439043,0.00021917,2]
[363076440,1748568642582,-738.48,0.00021917,2]
[363076442,1748568642591,-494.99,0.00021917,2]
[363076444,1748568642602,-1388.08,0.00021917,2]
[363076446,1748568642612,-649.63,0.00021917,2]
[363076448,1748568642622,-531.03,0.00021917,2]
[363076450,1748568642631,-420.0,0.00021917,2]
[363076452,1748568642641,-1307.92,0.00021917,2]
[363076454,1748568642651,-1715.73,0.00021917,2]
[363076456,1748568642661,-1310.07,0.00021917,2]
[363076458,1748568642672,-420.0,0.00021917,2]
[363076460,1748568642681,-1571.62,0.00021917,2]
[363076462,1748568642691,-439.2830381,0.00021917,2]
[363076464,1748568642701,-828.74,0.00021917,2]
[363076466,1748568642711,-646.77,0.00021917,2]
[363076468,1748568642720,-549.36,0.00021917,2]
[363076470,1748568642729,-737.61,0.00021917,2]
[363076473,1748568642739,-1337.23,0.00021917,2]
[363076474,1748568642749,-420.0,0.00021917,2]
[363076477,1748568642759,-420.0,0.00021917,2]
[363076479,1748568642769,-1059.13,0.00021917,2]
[363076481,1748568642779,-420.0,0.00021917,2]
[363076483,1748568642789,-729.79,0.00021917,2]
[363076485,1748568642799,-489.74,0.00021917,2]
[363076487,1748568642808,-640.04,0.00021917,2]
[363076489,1748568642818,-1359.84,0.00021917,2]
[363076491,1748568642827,-420.0,0.00021917,2]
[363076493,1748568642836,-420.0,0.00021917,2]
[363076495,1748568642845,-810.76,0.00021917,2]
[363076497,1748568642854,-420.0,0.00021917,2]
[363076499,1748568642864,-501.63,0.00021917,2]
[363076501,1748568642874,-1544.94,0.00021917,2]
[363076503,1748568642883,-420.0,0.00021917,2]
[363076505,1748568642893,-420.0,0.00021917,2]
[363076507,1748568642902,-651.07,0.00021917,2]
[363076509,1748568642911,-888.67,0.00021917,2]
[363076511,1748568642921,-1751.33,0.00021917,2]
[363076513,1748568642930,-420.0,0.00021917,2]
[363076515,1748568642940,-420.0,0.00021917,2]
[363076517,1748568642948,-685.82,0.00021917,2]
[363076519,1748568642961,-420.0,0.00021917,2]
[363076521,1748568642971,-541.55,0.00021917,2]
[363076523,1748568642981,-420.0,0.00021917,2]
[363076525,1748568642990,-420.0,0.00021917,2]
[363076527,1748568642999,-767.78,0.00021917,2]
[363076529,1748568643008,-859.43,0.00021917,2]
[363076531,1748568643018,-420.0,0.00021917,2]